Workbook

Sheet Sheet1
A1: 4930 | B1: =+NumofMonthsSinceCreation(+A1,7) -> 60970 | C1: =+YEARofCycle(A1) -> 9 | D1: =+RealMoladDays(B1) -> 5 | E1: =+MoladDays(+B1) -> 5 | F1: =+MoladHours(+B1) -> 12 | G1: =+MoladChalaqim(+B1) -> 1054 | O1: =+Chartbox(RoshHaShanah(A1),RoshHaShanah(A1+1),IsLeapYear(A1)) -> גכה
A3: 5772 | B3: =+NumofMonthsSinceCreation(+A3,1)+6 -> 71384 | C3: =+YEARofCycle(A3) -> 15 | D3: =+RealMoladDays(B3) -> 6 | E3: =+MoladDays(+B3) -> 5 | F3: =+MoladHours(+B3) -> 3 | G3: =+MoladChalaqim(+B3) -> 596 | I3: =+RealHours(+F3) -> 9 | J3: =+Meridian(F3) -> PM | K3: =+minutes(G3) -> 33 | L3: =+Chalaqim(G3) -> 2 | O3: =+Chartbox(RoshHaShanah(A3),RoshHaShanah(A3+1),IsLeapYear(A3)) -> הכז
A4: =+A3+1 -> 5773 | B4: =+NumofMonthsSinceCreation(+A4,1)+6 -> 71396 | C4: =+YEARofCycle(A4) -> 16 | D4: =+RealMoladDays(B4) -> 3 | E4: 3 | F4: 12 | G4: 392 | I4: 6 | J4: AM | K4: 21 | L4: 14 | O4: =+Chartbox(RoshHaShanah(A4),RoshHaShanah(A4+1),IsLeapYear(A4)) -> בחג
A5: 5774 | B5: 71408 | C5: 17 | D5: 7 | E5: 7 | F5: 21 | G5: 188 | I5: 3 | J5: PM | K5: 10 | L5: 8 | O5: =+Chartbox(RoshHaShanah(A5),RoshHaShanah(A5+1),IsLeapYear(A5)) -> השג
A6: 5775 | B6: 71421 | C6: 18 | D6: 6 | E6: =+MoladDays(+B6) -> 6 | F6: =+MoladHours(+B6) -> 18 | G6: =+MoladChalaqim(+B6) -> 777 | I6: =+RealHours(+F6) -> 12 | J6: =+Meridian(F6) -> PM | K6: =+minutes(G6) -> 43 | L6: =+Chalaqim(G6) -> 3 | O6: =+Chartbox(RoshHaShanah(A6),RoshHaShanah(A6+1),IsLeapYear(A6)) -> הכז
A7: 5776 | B7: 71433 | C7: 19 | D7: 4 | E7: 3 | F7: 3 | G7: =+MoladChalaqim(+B7) -> 573 | I7: =+RealHours(+F7) -> 9 | J7: =+Meridian(F7) -> PM | K7: =+minutes(G7) -> 31 | L7: =+Chalaqim(G7) -> 15 | O7: =+Chartbox(RoshHaShanah(A7),RoshHaShanah(A7+1),IsLeapYear(A7)) -> בשז
A8: =+A7+1 -> 5777 | B8: 71446 | C8: 1 | D8: 3 | E8: 2 | F8: 1 | G8: =+MoladChalaqim(+B8) -> 82 | I8: =+RealHours(+F8) -> 7 | J8: =+Meridian(F8) -> PM | K8: =+minutes(G8) -> 4 | L8: =+Chalaqim(G8) -> 10 | O8: =+Chartbox(RoshHaShanah(A8),RoshHaShanah(A8+1),IsLeapYear(A8)) -> בחג
A9: =+A8+1 -> 5778 | B9: 71458 | C9: =+YEARofCycle(A9) -> 2 | D9: 7 | E9: 7 | F9: 9 | G9: 958 | I9: 3 | J9: AM | K9: 53 | L9: 4 | O9: =+Chartbox(RoshHaShanah(A9),RoshHaShanah(A9+1),IsLeapYear(A9)) -> הכז
A10: 5779 | B10: 71470 | C10: =+YEARofCycle(A10) -> 3 | D10: 4 | E10: 4 | F10: 18 | G10: 754 | I10: 12 | J10: PM | K10: 41 | L10: 16 | O10: =+Chartbox(RoshHaShanah(A10),RoshHaShanah(A10+1),IsLeapYear(A10)) -> בשז
A11: 5780 | B11: 71483 | C11: 4 | D11: 3 | E11: 3 | F11: 16 | G11: 263 | I11: 10 | J11: AM | K11: 14 | L11: 11 | O11: =+Chartbox(RoshHaShanah(A11),RoshHaShanah(A11+1),IsLeapYear(A11)) -> בשה
A12: 5781 | B12: 71495 | C12: 5 | D12: 1 | E12: 7 | F12: 1 | G12: 59 | I12: 7 | J12: PM | K12: 3 | L12: 5 | O12: =+Chartbox(RoshHaShanah(A12),RoshHaShanah(A12+1),IsLeapYear(A12)) -> זחא
A13: 5782 | B13: 71507 | C13: 6 | D13: 5 | E13: 5 | F13: 9 | G13: 935 | I13: 3 | J13: AM | K13: 51 | L13: 17 | O13: =+Chartbox(RoshHaShanah(A13),RoshHaShanah(A13+1),IsLeapYear(A13)) -> גכז
A14: =+A13+1 -> 5783 | B14: 71520 | C14: 7 | D14: 4 | E14: 4 | F14: 7 | G14: 444 | I14: 1 | J14: AM | K14: 24 | L14: 12 | O14: =+Chartbox(RoshHaShanah(A14),RoshHaShanah(A14+1),IsLeapYear(A14)) -> בשה
A15: 5784 | B15: 71532 | C15: 8 | D15: 1 | E15: 1 | F15: 16 | G15: 240 | I15: 10 | J15: AM | K15: 13 | L15: 6 | O15: =+Chartbox(RoshHaShanah(A15),RoshHaShanah(A15+1),IsLeapYear(A15)) -> זחג
A16: 5785 | B16: 71545 | C16: 9 | D16: 7 | E16: 7 | F16: 13 | G16: 829 | I16: 7 | J16: AM | K16: 46 | L16: 1 | O16: =+Chartbox(RoshHaShanah(A16),RoshHaShanah(A16+1),IsLeapYear(A16)) -> השא
A17: 5786 | B17: 71557 | C17: 10 | D17: 4 | E17: 4 | F17: 22 | G17: 625 | I17: 4 | J17: PM | K17: 34 | L17: 13 | O17: =+Chartbox(RoshHaShanah(A17),RoshHaShanah(A17+1),IsLeapYear(A17)) -> גכה
A18: 5787 | B18: 71569 | C18: 11 | D18: 2 | E18: 2 | F18: 7 | G18: 421 | I18: 1 | J18: AM | K18: 23 | L18: 7 | O18: =+Chartbox(RoshHaShanah(A18),RoshHaShanah(A18+1),IsLeapYear(A18)) -> זשה
A19: =+A18+1 -> 5788 | B19: 71582 | C19: 12 | D19: 1 | E19: 7 | F19: =+MoladHours(+B19) -> 4 | G19: =+MoladChalaqim(+B19) -> 1010 | I19: =+RealHours(+F19) -> 10 | J19: =+Meridian(F19) -> PM | K19: =+minutes(G19) -> 56 | L19: =+Chalaqim(G19) -> 2 | O19: =+Chartbox(RoshHaShanah(A19),RoshHaShanah(A19+1),IsLeapYear(A19)) -> זשג
A20: 5789 | B20: 71594 | C20: 13 | D20: 5 | E20: 5 | F20: 13 | G20: 806 | I20: 7 | J20: AM | K20: 44 | L20: 14 | O20: =+Chartbox(RoshHaShanah(A20),RoshHaShanah(A20+1),IsLeapYear(A20)) -> הכז
A21: 5790 | B21: 71606 | C21: 14 | D21: 2 | E21: 2 | F21: 22 | G21: 602 | I21: 4 | J21: PM | K21: 33 | L21: 8 | O21: =+Chartbox(RoshHaShanah(A21),RoshHaShanah(A21+1),IsLeapYear(A21)) -> בחה
A22: 5791 | B22: 71619 | C22: 15 | D22: 1 | E22: 1 | F22: 20 | G22: 111 | I22: 2 | J22: PM | K22: 6 | L22: 3 | O22: =+Chartbox(RoshHaShanah(A22),RoshHaShanah(A22+1),IsLeapYear(A22)) -> זשג
A23: 5792 | B23: 71631 | C23: 16 | D23: 6 | E23: 5 | F23: 4 | G23: 987 | I23: 10 | J23: PM | K23: 54 | L23: 15 | O23: =+Chartbox(RoshHaShanah(A23),RoshHaShanah(A23+1),IsLeapYear(A23)) -> הכז
A24: 5793 | B24: 71643 | C24: 17 | D24: 3 | E24: 3 | F24: 13 | G24: 783 | I24: 7 | J24: AM | K24: 43 | L24: 9 | O24: =+Chartbox(RoshHaShanah(A24),RoshHaShanah(A24+1),IsLeapYear(A24)) -> בחה
A25: 5794 | B25: 71656 | C25: 18 | D25: 2 | E25: 2 | F25: 11 | G25: 292 | I25: 5 | J25: AM | K25: 16 | L25: 4 | O25: =+Chartbox(RoshHaShanah(A25),RoshHaShanah(A25+1),IsLeapYear(A25)) -> זשג
A26: 5795 | B26: 71668 | C26: 19 | D26: 6 | E26: 6 | F26: 20 | G26: 88 | I26: =+RealHours(+F26) -> 2 | J26: PM | K26: 4 | L26: 16 | O26: =+Chartbox(RoshHaShanah(A26),RoshHaShanah(A26+1),IsLeapYear(A26)) -> השג
A27: =+A26+1 -> 5796 | B27: 71681 | C27: =+YEARofCycle(A27) -> 1 | D27: =+RealMoladDays(B27) -> 5 | E27: 5 | F27: =+MoladHours(+B27) -> 17 | G27: =+MoladChalaqim(+B27) -> 677 | I27: =+RealHours(+F27) -> 11 | J27: =+Meridian(F27) -> AM | K27: =+minutes(G27) -> 37 | L27: =+Chalaqim(G27) -> 11 | O27: =+Chartbox(RoshHaShanah(A27),RoshHaShanah(A27+1),IsLeapYear(A27)) -> הכז
A28: =+A27+1 -> 5797 | B28: 71693 | C28: =+YEARofCycle(A28) -> 2 | D28: =+RealMoladDays(B28) -> 3 | E28: =+MoladDays(+B28) -> 2 | F28: =+MoladHours(+B28) -> 2 | G28: =+MoladChalaqim(+B28) -> 473 | I28: =+RealHours(+F28) -> 8 | J28: =+Meridian(F28) -> PM | K28: =+minutes(G28) -> 26 | L28: =+Chalaqim(G28) -> 5 | O28: =+Chartbox(RoshHaShanah(A28),RoshHaShanah(A28+1),IsLeapYear(A28)) -> בחג
A29: 5798 | B29: 71705 | C29: 3 | D29: 7 | E29: 7 | F29: 11 | G29: 269 | I29: 5 | J29: AM | K29: 14 | L29: 17 | O29: =+Chartbox(RoshHaShanah(A29),RoshHaShanah(A29+1),IsLeapYear(A29)) -> השג
A30: 5799 | B30: 71718 | C30: 4 | D30: 6 | E30: 6 | F30: 8 | G30: 858 | I30: 2 | J30: AM | K30: 47 | L30: 12 | O30: =+Chartbox(RoshHaShanah(A30),RoshHaShanah(A30+1),IsLeapYear(A30)) -> הכז
A31: 5800 | B31: 71730 | C31: 5 | D31: 3 | E31: 3 | F31: 17 | G31: 654 | I31: 11 | J31: AM | K31: 36 | L31: 6 | O31: =+Chartbox(RoshHaShanah(A31),RoshHaShanah(A31+1),IsLeapYear(A31)) -> בשה
A32: 5801 | B32: 71742 | C32: 6 | D32: 1 | E32: 7 | F32: 2 | G32: 450 | I32: 8 | J32: PM | K32: 25 | L32: 0 | O32: =+Chartbox(RoshHaShanah(A32),RoshHaShanah(A32+1),IsLeapYear(A32)) -> זחג
A33: 5802 | B33: 71755 | C33: 7 | D33: 6 | E33: 6 | F33: 23 | G33: 1039 | I33: 5 | J33: PM | K33: 57 | L33: 13 | O33: =+Chartbox(RoshHaShanah(A33),RoshHaShanah(A33+1),IsLeapYear(A33)) -> הכז
A34: 5803 | B34: 71767 | C34: 8 | D34: 4 | E34: 4 | F34: 8 | G34: 835 | I34: 2 | J34: AM | K34: 46 | L34: 7 | O34: =+Chartbox(RoshHaShanah(A34),RoshHaShanah(A34+1),IsLeapYear(A34)) -> בשז
A35: 5804 | B35: 71780 | C35: 9 | D35: 3 | E35: 3 | F35: 6 | G35: 344 | I35: 12 | J35: AM | K35: 19 | L35: 2 | O35: =+Chartbox(RoshHaShanah(A35),RoshHaShanah(A35+1),IsLeapYear(A35)) -> בחג
A36: 5805 | B36: 71792 | C36: 10 | D36: 7 | E36: 7 | F36: 15 | G36: 140 | I36: 9 | J36: AM | K36: 7 | L36: 14 | O36: =+Chartbox(RoshHaShanah(A36),RoshHaShanah(A36+1),IsLeapYear(A36)) -> השא
A37: 5806 | B37: 71804 | C37: 11 | D37: 4 | E37: 4 | F37: 23 | G37: 1016 | I37: 5 | J37: PM | K37: 56 | L37: 8 | O37: =+Chartbox(RoshHaShanah(A37),RoshHaShanah(A37+1),IsLeapYear(A37)) -> גכז
A38: 5807 | B38: 71817 | C38: 12 | D38: 3 | E38: 3 | F38: 21 | G38: 525 | I38: 3 | J38: PM | K38: 29 | L38: 3 | O38: =+Chartbox(RoshHaShanah(A38),RoshHaShanah(A38+1),IsLeapYear(A38)) -> בשה
A39: 5808 | B39: 71829 | C39: 13 | D39: 1 | E39: 1 | F39: 6 | G39: 321 | I39: 12 | J39: AM | K39: 17 | L39: 15 | O39: =+Chartbox(RoshHaShanah(A39),RoshHaShanah(A39+1),IsLeapYear(A39)) -> זחא
A40: 5809 | B40: 71841 | C40: 14 | D40: 5 | E40: 5 | F40: 15 | G40: 117 | I40: 9 | J40: AM | K40: 6 | L40: 9 | O40: =+Chartbox(RoshHaShanah(A40),RoshHaShanah(A40+1),IsLeapYear(A40)) -> גכז
A41: 5810 | B41: 71854 | C41: 15 | D41: 4 | E41: 4 | F41: 12 | G41: 706 | I41: 6 | J41: AM | K41: 39 | L41: 4 | O41: =+Chartbox(RoshHaShanah(A41),RoshHaShanah(A41+1),IsLeapYear(A41)) -> בשה
A42: 5811 | B42: 71866 | C42: 16 | D42: 1 | E42: 1 | F42: 21 | G42: 502 | I42: 3 | J42: PM | K42: 27 | L42: 16 | O42: =+Chartbox(RoshHaShanah(A42),RoshHaShanah(A42+1),IsLeapYear(A42)) -> זשג
A43: 5812 | B43: 71878 | C43: 17 | D43: 6 | E43: 6 | F43: 6 | G43: 298 | I43: 12 | J43: AM | K43: 16 | L43: 10 | O43: =+Chartbox(RoshHaShanah(A43),RoshHaShanah(A43+1),IsLeapYear(A43)) -> החא
A44: 5813 | B44: 71891 | C44: 18 | D44: 5 | E44: 4 | F44: 3 | G44: 887 | I44: 9 | J44: PM | K44: 49 | L44: 5 | O44: =+Chartbox(RoshHaShanah(A44),RoshHaShanah(A44+1),IsLeapYear(A44)) -> גכה
A45: 5814 | B45: 71903 | C45: 19 | D45: 2 | E45: 2 | F45: 12 | G45: 683 | I45: 6 | J45: AM | K45: 37 | L45: 17 | O45: =+Chartbox(RoshHaShanah(A45),RoshHaShanah(A45+1),IsLeapYear(A45)) -> זשה
A46: 5815 | B46: 71916 | C46: 1 | D46: 1 | E46: 1 | F46: 10 | G46: 192 | I46: 4 | J46: AM | K46: 10 | L46: 12 | O46: =+Chartbox(RoshHaShanah(A46),RoshHaShanah(A46+1),IsLeapYear(A46)) -> זשג
A47: =+A46+1 -> 5816 | B47: 71928 | C47: =+YEARofCycle(A47) -> 2 | D47: =+RealMoladDays(B47) -> 5 | E47: =+MoladDays(+B47) -> 5 | F47: =+MoladHours(+B47) -> 18 | G47: =+MoladChalaqim(+B47) -> 1068 | I47: =+RealHours(+F47) -> 12 | J47: =+Meridian(F47) -> PM | K47: =+minutes(G47) -> 59 | L47: =+Chalaqim(G47) -> 6 | O47: =+Chartbox(RoshHaShanah(A47),RoshHaShanah(A47+1),IsLeapYear(A47)) -> הכז
A48: 5817 | B48: 71940 | C48: 3 | D48: 3 | E48: 2 | F48: 3 | G48: 864 | I48: 9 | J48: PM | K48: 48 | L48: 0 | O48: =+Chartbox(RoshHaShanah(A48),RoshHaShanah(A48+1),IsLeapYear(A48)) -> בחה
A49: 5818 | B49: 71953 | C49: 4 | D49: 2 | E49: 1 | F49: 1 | G49: 373 | I49: 7 | J49: PM | K49: 20 | L49: 13 | O49: =+Chartbox(RoshHaShanah(A49),RoshHaShanah(A49+1),IsLeapYear(A49)) -> זשג
A50: 5819 | B50: 71965 | C50: 5 | D50: 6 | E50: 6 | F50: 10 | G50: 169 | I50: 4 | J50: AM | K50: 9 | L50: 7 | O50: =+Chartbox(RoshHaShanah(A50),RoshHaShanah(A50+1),IsLeapYear(A50)) -> הכז
A51: 5820 | B51: 71977 | C51: 6 | D51: 3 | E51: 3 | F51: 18 | G51: 1045 | I51: 12 | J51: PM | K51: 58 | L51: 1 | O51: =+Chartbox(RoshHaShanah(A51),RoshHaShanah(A51+1),IsLeapYear(A51)) -> בחה
A52: 5821 | B52: 71990 | C52: 7 | D52: 2 | E52: 2 | F52: 16 | G52: 554 | I52: 10 | J52: AM | K52: 30 | L52: 14 | O52: =+Chartbox(RoshHaShanah(A52),RoshHaShanah(A52+1),IsLeapYear(A52)) -> זשג
A53: 5822 | B53: 72002 | C53: 8 | D53: 7 | E53: 6 | F53: 1 | G53: 350 | I53: 7 | J53: PM | K53: 19 | L53: 8 | O53: =+Chartbox(RoshHaShanah(A53),RoshHaShanah(A53+1),IsLeapYear(A53)) -> השג
A54: 5823 | B54: 72015 | C54: 9 | D54: 5 | E54: 5 | F54: 22 | G54: 939 | I54: 4 | J54: PM | K54: 52 | L54: 3 | O54: =+Chartbox(RoshHaShanah(A54),RoshHaShanah(A54+1),IsLeapYear(A54)) -> הכז
A55: 5824 | B55: 72027 | C55: 10 | D55: 3 | E55: 3 | F55: 7 | G55: 735 | I55: 1 | J55: AM | K55: 40 | L55: 15 | O55: =+Chartbox(RoshHaShanah(A55),RoshHaShanah(A55+1),IsLeapYear(A55)) -> בחג
A56: 5825 | B56: 72039 | C56: 11 | D56: 7 | E56: 7 | F56: 16 | G56: 531 | I56: 10 | J56: AM | K56: 29 | L56: 9 | O56: =+Chartbox(RoshHaShanah(A56),RoshHaShanah(A56+1),IsLeapYear(A56)) -> השג
A57: 5826 | B57: 72052 | C57: 12 | D57: 6 | E57: 6 | F57: 14 | G57: 40 | I57: 8 | J57: AM | K57: 2 | L57: 4 | O57: =+Chartbox(RoshHaShanah(A57),RoshHaShanah(A57+1),IsLeapYear(A57)) -> הכז
A58: 5827 | B58: 72064 | C58: 13 | D58: 3 | E58: 3 | F58: 22 | G58: 916 | I58: 4 | J58: PM | K58: 50 | L58: 16 | O58: =+Chartbox(RoshHaShanah(A58),RoshHaShanah(A58+1),IsLeapYear(A58)) -> בשה
A59: 5828 | B59: 72076 | C59: 14 | D59: 1 | E59: 1 | F59: 7 | G59: 712 | I59: 1 | J59: AM | K59: 39 | L59: 10 | O59: =+Chartbox(RoshHaShanah(A59),RoshHaShanah(A59+1),IsLeapYear(A59)) -> זחג
A60: 5829 | B60: 72089 | C60: 15 | D60: 7 | E60: 6 | F60: 5 | G60: 221 | I60: 11 | J60: PM | K60: 12 | L60: 5 | O60: =+Chartbox(RoshHaShanah(A60),RoshHaShanah(A60+1),IsLeapYear(A60)) -> הכז
A61: 5830 | B61: 72101 | C61: 16 | D61: 4 | E61: 4 | F61: 14 | G61: 17 | I61: 8 | J61: AM | K61: 0 | L61: 17 | O61: =+Chartbox(RoshHaShanah(A61),RoshHaShanah(A61+1),IsLeapYear(A61)) -> בשה
A62: 5831 | B62: 72113 | C62: 17 | D62: 1 | E62: 1 | F62: 22 | G62: 893 | I62: 4 | J62: PM | K62: 49 | L62: 11 | O62: =+Chartbox(RoshHaShanah(A62),RoshHaShanah(A62+1),IsLeapYear(A62)) -> זחג
A63: 5832 | B63: 72126 | C63: 18 | D63: 7 | E63: 7 | F63: 20 | G63: 402 | I63: 2 | J63: PM | K63: 22 | L63: 6 | O63: =+Chartbox(RoshHaShanah(A63),RoshHaShanah(A63+1),IsLeapYear(A63)) -> השא
A64: 5833 | B64: 72138 | C64: 19 | D64: 5 | E64: 4 | F64: 5 | G64: 198 | I64: 11 | J64: PM | K64: 11 | L64: 0 | O64: =+Chartbox(RoshHaShanah(A64),RoshHaShanah(A64+1),IsLeapYear(A64)) -> גכז
A65: 5834 | B65: 72151 | C65: 1 | D65: 4 | E65: 3 | F65: 2 | G65: 787 | I65: 8 | J65: PM | K65: 43 | L65: 13 | O65: =+Chartbox(RoshHaShanah(A65),RoshHaShanah(A65+1),IsLeapYear(A65)) -> בשה
A67: =5815-741 -> 5074 | B67: =+NumofMonthsSinceCreation(+A67,1) -> 62745 | C67: =+YEARofCycle(A67) -> 1 | D67: =+RealMoladDays(B67) -> 6 | E67: =+MoladDays(+B67) -> 6 | F67: =+MoladHours(+B67) -> 8 | G67: =+MoladChalaqim(+B67) -> 309 | I67: =+RealHours(+F67) -> 2 | J67: =+Meridian(F67) -> AM | K67: =+minutes(G67) -> 17 | L67: =+Chalaqim(G67) -> 3 | O67: =+Chartbox(RoshHaShanah(A67),RoshHaShanah(A67+1),IsLeapYear(A67)) -> זשג
A68: =+A67+1 -> 5075 | B68: 62757 | C68: 2 | D68: 3 | E68: 3 | F68: 17 | G68: 105 | I68: 11 | J68: AM | K68: 5 | L68: 15 | O68: =+Chartbox(RoshHaShanah(A68),RoshHaShanah(A68+1),IsLeapYear(A68)) -> הכז
A69: 5076 | B69: 62769 | C69: 3 | D69: 1 | E69: 7 | F69: 1 | G69: 981 | I69: 7 | J69: PM | K69: 54 | L69: 9 | O69: =+Chartbox(RoshHaShanah(A69),RoshHaShanah(A69+1),IsLeapYear(A69)) -> בחה
A70: 5077 | B70: 62782 | C70: 4 | D70: 6 | E70: 6 | F70: 23 | G70: 490 | I70: 5 | J70: PM | K70: 27 | L70: 4 | O70: =+Chartbox(RoshHaShanah(A70),RoshHaShanah(A70+1),IsLeapYear(A70)) -> זשג
A71: 5078 | B71: 62794 | C71: 5 | D71: 4 | E71: 4 | F71: 8 | G71: 286 | I71: 2 | J71: AM | K71: 15 | L71: 16 | O71: =+Chartbox(RoshHaShanah(A71),RoshHaShanah(A71+1),IsLeapYear(A71)) -> הכז
A72: 5079 | B72: =+NumofMonthsSinceCreation(+A72,1) -> 62806 | C72: 6 | D72: 1 | E72: 1 | F72: 17 | G72: 82 | I72: 11 | J72: AM | K72: 4 | L72: 10 | O72: =+Chartbox(RoshHaShanah(A72),RoshHaShanah(A72+1),IsLeapYear(A72)) -> בחה
A73: 5080 | B73: 62819 | C73: 7 | D73: 7 | E73: 7 | F73: 14 | G73: 671 | I73: 8 | J73: AM | K73: 37 | L73: 5 | O73: =+Chartbox(RoshHaShanah(A73),RoshHaShanah(A73+1),IsLeapYear(A73)) -> זשג
A74: 5081 | B74: 62831 | C74: 8 | D74: 4 | E74: 4 | F74: 23 | G74: 467 | I74: 5 | J74: PM | K74: 25 | L74: 17 | O74: =+Chartbox(RoshHaShanah(A74),RoshHaShanah(A74+1),IsLeapYear(A74)) -> השג
A75: 5082 | B75: 62844 | C75: 9 | D75: 3 | E75: 3 | F75: 20 | G75: 1056 | I75: 2 | J75: PM | K75: 58 | L75: 12 | O75: =+Chartbox(RoshHaShanah(A75),RoshHaShanah(A75+1),IsLeapYear(A75)) -> הכז
A76: 5083 | B76: 62856 | C76: 10 | D76: 1 | E76: 7 | F76: 5 | G76: 852 | I76: 11 | J76: PM | K76: 47 | L76: 6 | O76: =+Chartbox(RoshHaShanah(A76),RoshHaShanah(A76+1),IsLeapYear(A76)) -> בחג
A77: 5084 | B77: 62868 | C77: 11 | D77: 5 | E77: 5 | F77: 14 | G77: 648 | I77: 8 | J77: AM | K77: 36 | L77: 0 | O77: =+Chartbox(RoshHaShanah(A77),RoshHaShanah(A77+1),IsLeapYear(A77)) -> השג
A78: 5085 | B78: 62881 | C78: 12 | D78: 4 | E78: 4 | F78: 12 | G78: 157 | I78: 6 | J78: AM | K78: 8 | L78: 13 | O78: =+Chartbox(RoshHaShanah(A78),RoshHaShanah(A78+1),IsLeapYear(A78)) -> הכז
A79: 5086 | B79: 62893 | C79: 13 | D79: 1 | E79: 1 | F79: 20 | G79: 1033 | I79: 2 | J79: PM | K79: 57 | L79: 7 | O79: =+Chartbox(RoshHaShanah(A79),RoshHaShanah(A79+1),IsLeapYear(A79)) -> בשה
A80: 5087 | B80: 62905 | C80: 14 | D80: 6 | E80: 5 | F80: 5 | G80: 829 | I80: 11 | J80: PM | K80: 46 | L80: 1 | O80: =+Chartbox(RoshHaShanah(A80),RoshHaShanah(A80+1),IsLeapYear(A80)) -> זחג
A81: 5088 | B81: 62918 | C81: 15 | D81: 5 | E81: 4 | F81: 3 | G81: 338 | I81: 9 | J81: PM | K81: 18 | L81: 14 | O81: =+Chartbox(RoshHaShanah(A81),RoshHaShanah(A81+1),IsLeapYear(A81)) -> הכז
A82: 5089 | B82: 62930 | C82: 16 | D82: 2 | E82: 2 | F82: 12 | G82: 134 | I82: 6 | J82: AM | K82: 7 | L82: 8 | O82: =+Chartbox(RoshHaShanah(A82),RoshHaShanah(A82+1),IsLeapYear(A82)) -> בשה
A83: 5090 | B83: 62942 | C83: 17 | D83: 6 | E83: 6 | F83: 20 | G83: 1010 | I83: 2 | J83: PM | K83: 56 | L83: 2 | O83: =+Chartbox(RoshHaShanah(A83),RoshHaShanah(A83+1),IsLeapYear(A83)) -> זשה
A84: 5091 | B84: 62955 | C84: 18 | D84: 5 | E84: 5 | F84: 18 | G84: 519 | I84: 12 | J84: PM | K84: 28 | L84: 15 | O84: =+Chartbox(RoshHaShanah(A84),RoshHaShanah(A84+1),IsLeapYear(A84)) -> זחא
A85: 5092 | B85: 62967 | C85: 19 | D85: 3 | E85: 2 | F85: 3 | G85: 315 | I85: 9 | J85: PM | K85: 17 | L85: 9 | O85: =+Chartbox(RoshHaShanah(A85),RoshHaShanah(A85+1),IsLeapYear(A85)) -> גכז
A86: 5093 | B86: 62980 | C86: 1 | D86: 2 | E86: 1 | F86: 0 | G86: 904 | I86: 6 | J86: PM | K86: 50 | L86: 4 | O86: =+Chartbox(RoshHaShanah(A86),RoshHaShanah(A86+1),IsLeapYear(A86)) -> בשה

Sheet Sheet2
A1: 1 | C1: 10.88
A2: =+A1+1 -> 2 | C2: =+C1+10.8829 -> 21.7629
A3: =+A2+1 -> 3 | C3: =+C2+10.8829-29.53 -> 3.1158
A4: 4 | C4: =+C3+10.8829 -> 13.9987
A5: 5 | C5: =+C4+10.8829 -> 24.8816
A6: 6 | C6: =+C5+10.8829-29.53 -> 6.2345
A7: 7 | C7: =+C6+10.8829 -> 17.1174
A8: 8 | C8: =+C7+10.8829-29.53 -> -1.5297
A9: 9 | C9: =+C8+10.8829 -> 9.3532
A10: 10 | C10: =+C9+10.8829 -> 20.2361
A11: 11 | C11: =+C10+10.8829-29.53 -> 1.589
A12: 12 | C12: =+C11+10.8829 -> 12.4719
A13: 13 | C13: =+C12+10.8829 -> 23.3548
A14: 14 | C14: =+C13+10.8829-29.53 -> 4.7077
A15: 15 | C15: =+C14+10.8829 -> 15.5906
A16: 16 | C16: =+C15+10.8829 -> 26.4735
A17: 17 | C17: =+C16+10.8829-29.53 -> 7.8264
A18: 18 | C18: =+C17+10.8829 -> 18.7093
A19: 19 | C19: =+C18+10.8829-29.53 -> 0.0622
B21: 6939.75

Sheet Sheet3
A2: =+SubtractTwoTimes("3:15:421", "2:11:503") -> 1:3:998
A3: =+MultiplyaTime("0:1:485",259) -> 15:15:335
A4: =+SubtractTwoTimes(A3,"7:9:642") -> 8:5:773
A6: =+AddTwoTimes(A4, MultiplyaTime("10:21:204",18)) -> 204:3:125
A7: =+SubtractTwoTimes(A6,MultiplyaTime("29:12:973",7)) -> 3:8:874
A9: =+MultiplyaTime("29:12:793", 235) -> 6939:16:595
A10: =+MultiplyaTime("365:6:0", 19) -> 6939:18:0
A11: =+SubtractTwoTimes(A10,A9) -> 0:1:485
A14: =4930/311 -> 15.85209003
A16: =+MultiplyaTime("0:1:485",259) -> 15:15:335
A17: =+SubtractTwoTimes(A16,"7:9:642") -> 8:5:773 | B17: This should really be the differential Rambam uses rather than 7 - the question is why does he use 7 instead of 8?
